[Event "Late-Titled-Tuesday-Blitz-June-04-2024"]
[Site "Chess.com"]
[Date "2024.06.04"]
[Round "1"]
[White "MarceloPlaya"]
[Black "yaguigor"]
[Result "1-0"]
[WhiteElo "2352"]
[BlackElo "2621"]
[TimeControl "180+1"]
[EndTime "14:07:16 PDT"]
[Termination "MarceloPlaya won on time"]

1. e4 {[%clk 0:02:57]} 1... c5 {[%clk 0:02:59.6]} 2. Nf3 {[%clk 0:02:54.8]} 2...
Nc6 {[%clk 0:02:59.2]} 3. d4 {[%clk 0:02:54.1]} 3... cxd4 {[%clk 0:02:58.4]} 4.
Nxd4 {[%clk 0:02:54]} 4... Qb6 {[%clk 0:02:59.1]} 5. Nb3 {[%clk 0:02:52.8]} 5...
Nf6 {[%clk 0:02:59.3]} 6. Be3 {[%clk 0:02:51.4]} 6... Qc7 {[%clk 0:02:57.7]} 7.
Nc3 {[%clk 0:02:49.9]} 7... e6 {[%clk 0:02:57]} 8. f3 {[%clk 0:02:47.1]} 8...
Bb4 {[%clk 0:02:53.8]} 9. Qd2 {[%clk 0:02:45.7]} 9... d5 {[%clk 0:02:53]} 10. a3
{[%clk 0:02:26.8]} 10... Bxc3 {[%clk 0:02:51.6]} 11. Qxc3 {[%clk 0:02:26.3]}
11... dxe4 {[%clk 0:02:51.8]} 12. fxe4 {[%clk 0:02:26]} 12... O-O {[%clk
0:02:51.1]} 13. Bd3 {[%clk 0:02:22.4]} 13... Ng4 {[%clk 0:02:39.4]} 14. Bc5
{[%clk 0:02:14.4]} 14... Rd8 {[%clk 0:02:13.4]} 15. O-O-O {[%clk 0:02:13]} 15...
b6 {[%clk 0:02:03.7]} 16. Bg1 {[%clk 0:02:08.3]} 16... Bb7 {[%clk 0:01:59]} 17.
h3 {[%clk 0:02:04.5]} 17... Qf4+ {[%clk 0:01:58.6]} 18. Kb1 {[%clk 0:02:03]}
18... Nge5 {[%clk 0:01:32.5]} 19. Bh2 {[%clk 0:01:59.1]} 19... Qg5 {[%clk
0:01:32.7]} 20. h4 {[%clk 0:01:53.5]} 20... Qh5 {[%clk 0:01:32.3]} 21. g4 {[%clk
0:01:47.4]} 21... Nxg4 {[%clk 0:01:30.7]} 22. Be2 {[%clk 0:01:41]} 22... f5
{[%clk 0:01:30]} 23. exf5 {[%clk 0:01:35.9]} 23... exf5 {[%clk 0:01:25.8]} 24.
Rhg1 {[%clk 0:01:30.3]} 24... Qxh4 {[%clk 0:01:17.3]} 25. Bxg4 {[%clk
0:01:19.7]} 25... fxg4 {[%clk 0:01:16.7]} 26. Rxd8+ {[%clk 0:01:09.4]} 26...
Rxd8 {[%clk 0:01:15.3]} 27. Bg3 {[%clk 0:00:57.4]} 27... Qg5 {[%clk 0:01:09.7]}
28. Qc4+ {[%clk 0:00:51.1]} 28... Kh8 {[%clk 0:01:00.8]} 29. Qf7 {[%clk
0:00:48.5]} 29... Qe7 {[%clk 0:00:53.7]} 30. Qh5 {[%clk 0:00:45.7]} 30... h6
{[%clk 0:00:32.3]} 31. Bh4 {[%clk 0:00:40.4]} 31... Qe8 {[%clk 0:00:30.4]} 32.
Qxg4 {[%clk 0:00:39.8]} 32... Rd7 {[%clk 0:00:30.7]} 33. Re1 {[%clk 0:00:35]}
33... Qc8 {[%clk 0:00:29.4]} 34. Qg6 {[%clk 0:00:30.4]} 34... Ne7 {[%clk
0:00:04]} 35. Bxe7 {[%clk 0:00:27.5]} 35... Qc6 {[%clk 0:00:01]} 36. Qe8+ {[%clk
0:00:24.1]} 36... Kh7 {[%clk 0:00:01.7]} 37. Bb4 {[%clk 0:00:20.4]} 1-0

[Event "Late-Titled-Tuesday-Blitz-June-04-2024"]
[Site "Chess.com"]
[Date "2024.06.04"]
[Round "1"]
[White "ChessAdvanceUSA"]
[Black "eljanov"]
[Result "0-1"]
[WhiteElo "2492"]
[BlackElo "2909"]
[TimeControl "180+1"]
[EndTime "14:07:20 PDT"]
[Termination "eljanov won on time"]

1. Nf3 {[%clk 0:02:49.3]} 1... d5 {[%clk 0:02:59.5]} 2. c4 {[%clk 0:02:48.5]}
2... d4 {[%clk 0:02:58]} 3. d3 {[%clk 0:02:48.6]} 3... Nc6 {[%clk 0:02:56.5]} 4.
g3 {[%clk 0:02:47.4]} 4... e5 {[%clk 0:02:56.7]} 5. Bg2 {[%clk 0:02:45.5]} 5...
Bb4+ {[%clk 0:02:57]} 6. Bd2 {[%clk 0:02:44.9]} 6... a5 {[%clk 0:02:53.4]} 7.
O-O {[%clk 0:02:43.2]} 7... Nf6 {[%clk 0:02:53.7]} 8. Bxb4 {[%clk 0:02:42.5]}
8... axb4 {[%clk 0:02:53.6]} 9. Nbd2 {[%clk 0:02:42.9]} 9... O-O {[%clk
0:02:53.5]} 10. a3 {[%clk 0:02:40.4]} 10... bxa3 {[%clk 0:02:51.8]} 11. Rxa3
{[%clk 0:02:41.3]} 11... Rxa3 {[%clk 0:02:51.4]} 12. bxa3 {[%clk 0:02:42.2]}
12... Re8 {[%clk 0:02:39]} 13. Ng5 {[%clk 0:02:37]} 13... Bd7 {[%clk 0:02:07.8]}
14. Qb3 {[%clk 0:02:29.4]} 14... h6 {[%clk 0:02:03.6]} 15. Nge4 {[%clk
0:02:26.8]} 15... Nxe4 {[%clk 0:01:31.3]} 16. Nxe4 {[%clk 0:02:27.3]} 16... b6
{[%clk 0:01:15.6]} 17. c5 {[%clk 0:02:16.2]} 17... Na5 {[%clk 0:01:11.2]} 18.
Qb4 {[%clk 0:01:34]} 18... Bc6 {[%clk 0:01:11.4]} 19. cxb6 {[%clk 0:01:31.6]}
19... cxb6 {[%clk 0:01:11.3]} 20. Rb1 {[%clk 0:01:14.8]} 20... f5 {[%clk
0:00:54.9]} 21. Nd6 {[%clk 0:01:11.4]} 21... Re6 {[%clk 0:00:47.6]} 22. Nxf5
{[%clk 0:00:51.4]} 22... Bxg2 {[%clk 0:00:47.3]} 23. Kxg2 {[%clk 0:00:51.1]}
23... Rf6 {[%clk 0:00:36.8]} 24. Nh4 {[%clk 0:00:40.7]} 24... Qd5+ {[%clk
0:00:36.7]} 25. Nf3 {[%clk 0:00:32.8]} 25... Kh7 {[%clk 0:00:33.2]} 26. Qe7
{[%clk 0:00:27.8]} 26... Nc6 {[%clk 0:00:31.5]} 27. Qb7 {[%clk 0:00:23.1]} 27...
e4 {[%clk 0:00:31.6]} 28. dxe4 {[%clk 0:00:21.5]} 28... Qxe4 {[%clk 0:00:31.3]}
29. Rxb6 {[%clk 0:00:15.9]} 29... d3 {[%clk 0:00:31.5]} 30. Rxc6 {[%clk
0:00:04.3]} 30... Qxc6 {[%clk 0:00:28.5]} 31. Qxc6 {[%clk 0:00:03.2]} 31... Rxc6
{[%clk 0:00:29.1]} 32. exd3 {[%clk 0:00:04.1]} 32... Rc3 {[%clk 0:00:29.3]} 33.
d4 {[%clk 0:00:03.8]} 33... Rxa3 {[%clk 0:00:29.5]} 34. h4 {[%clk 0:00:04.5]}
34... Kg6 {[%clk 0:00:28.9]} 35. g4 {[%clk 0:00:04.6]} 35... h5 {[%clk
0:00:25.4]} 36. Kg3 {[%clk 0:00:01.3]} 36... hxg4 {[%clk 0:00:25.8]} 37. Kxg4
{[%clk 0:00:02.2]} 37... Ra2 {[%clk 0:00:26.1]} 38. h5+ {[%clk 0:00:01.9]} 38...
Kf6 {[%clk 0:00:26.5]} 0-1

[Event "Late-Titled-Tuesday-Blitz-June-04-2024"]
[Site "Chess.com"]
[Date "2024.06.04"]
[Round "1"]
[White "Pig-filth"]
[Black "aghasiyevkamal"]
[Result "0-1"]
[WhiteElo "2313"]
[BlackElo "2620"]
[TimeControl "180+1"]
[EndTime "14:07:28 PDT"]
[Termination "aghasiyevkamal won by resignation"]

1. d4 {[%clk 0:03:00.9]} 1... Nf6 {[%clk 0:02:31.7]} 2. Bg5 {[%clk 0:03:00]}
2... d5 {[%clk 0:02:29.1]} 3. Bxf6 {[%clk 0:02:59]} 3... gxf6 {[%clk 0:02:13.8]}
4. e3 {[%clk 0:02:59.9]} 4... c5 {[%clk 0:02:10]} 5. Nc3 {[%clk 0:03:00]} 5...
Nc6 {[%clk 0:02:06.6]} 6. Qh5 {[%clk 0:02:59.6]} 6... e6 {[%clk 0:02:05.7]} 7.
Bb5 {[%clk 0:02:57.6]} 7... Bd7 {[%clk 0:02:04.1]} 8. Nge2 {[%clk 0:02:51.6]}
8... Qb6 {[%clk 0:01:33.6]} 9. O-O {[%clk 0:02:44.6]} 9... Be7 {[%clk
0:01:27.7]} 10. a4 {[%clk 0:02:35.2]} 10... a6 {[%clk 0:01:24.1]} 11. a5 {[%clk
0:02:33.4]} 11... Qc7 {[%clk 0:01:23.4]} 12. Bxc6 {[%clk 0:02:26.1]} 12... Bxc6
{[%clk 0:01:22.9]} 13. Nf4 {[%clk 0:02:19.7]} 13... Bd7 {[%clk 0:01:10.7]} 14.
Nfxd5 {[%clk 0:02:00.2]} 14... exd5 {[%clk 0:01:08.5]} 15. Nxd5 {[%clk
0:02:01.1]} 15... Qc6 {[%clk 0:01:05]} 16. Nb6 {[%clk 0:01:55.8]} 16... Rd8
{[%clk 0:01:00.9]} 17. d5 {[%clk 0:01:55.8]} 17... Qc7 {[%clk 0:00:58]} 18. c4
{[%clk 0:01:49.6]} 18... Qe5 {[%clk 0:00:55]} 19. Qe2 {[%clk 0:01:44]} 19... Rg8
{[%clk 0:00:52.5]} 20. Nxd7 {[%clk 0:01:23.5]} 20... Kxd7 {[%clk 0:00:45.6]} 21.
f4 {[%clk 0:01:16]} 21... Qe4 {[%clk 0:00:43.4]} 22. Rf3 {[%clk 0:01:15]} 22...
Rg6 {[%clk 0:00:38.3]} 23. Rg3 {[%clk 0:01:15.1]} 23... f5 {[%clk 0:00:35.7]}
24. Rc1 {[%clk 0:00:57.2]} 24... Rdg8 {[%clk 0:00:30.2]} 25. Rxg6 {[%clk
0:00:47.4]} 25... fxg6 {[%clk 0:00:22.1]} 26. Rc2 {[%clk 0:00:48.3]} 26... Bf6
{[%clk 0:00:20.6]} 27. b4 {[%clk 0:00:47.9]} 27... cxb4 {[%clk 0:00:17.4]} 28.
c5 {[%clk 0:00:48]} 28... b3 {[%clk 0:00:13.6]} 29. c6+ {[%clk 0:00:47.2]} 29...
Kd6 {[%clk 0:00:13.4]} 30. Rd2 {[%clk 0:00:38.7]} 30... Re8 {[%clk 0:00:10.5]}
31. cxb7 {[%clk 0:00:34.3]} 31... b2 {[%clk 0:00:10.7]} 32. Qxa6+ {[%clk
0:00:29.5]} 32... Ke7 {[%clk 0:00:08.8]} 33. Qb6 {[%clk 0:00:15.8]} 33... b1=Q+
{[%clk 0:00:08.3]} 34. Qxb1 {[%clk 0:00:14]} 34... Qxb1+ {[%clk 0:00:09.2]} 35.
Kf2 {[%clk 0:00:14.8]} 35... Qxb7 {[%clk 0:00:09.2]} 36. d6+ {[%clk 0:00:14.6]}
36... Kd7 {[%clk 0:00:09.5]} 37. Rc2 {[%clk 0:00:12.3]} 37... Qa7 {[%clk
0:00:08]} 38. Rc7+ {[%clk 0:00:10.2]} 38... Qxc7 {[%clk 0:00:08.2]} 39. dxc7
{[%clk 0:00:11.1]} 39... Kxc7 {[%clk 0:00:09.1]} 40. a6 {[%clk 0:00:11.7]} 40...
Kb6 {[%clk 0:00:09.3]} 41. g4 {[%clk 0:00:12.6]} 41... Ka7 {[%clk 0:00:10]} 0-1

[Event "Late-Titled-Tuesday-Blitz-June-04-2024"]
[Site "Chess.com"]
[Date "2024.06.04"]
[Round "1"]
[White "Likvidator228"]
[Black "IngOscarArdila"]
[Result "0-1"]
[WhiteElo "2578"]
[BlackElo "2291"]
[TimeControl "180+1"]
[EndTime "14:07:28 PDT"]
[Termination "IngOscarArdila won by checkmate"]

1. c4 {[%clk 0:02:58.1]} 1... Nf6 {[%clk 0:02:59.9]} 2. Nc3 {[%clk 0:02:58.2]}
2... e6 {[%clk 0:03:00.1]} 3. g3 {[%clk 0:02:58.5]} 3... Be7 {[%clk 0:03:00.2]}
4. Bg2 {[%clk 0:02:58.3]} 4... O-O {[%clk 0:03:00.4]} 5. Nf3 {[%clk 0:02:58.8]}
5... d6 {[%clk 0:03:00.8]} 6. O-O {[%clk 0:02:58.4]} 6... Nbd7 {[%clk
0:03:01.6]} 7. b3 {[%clk 0:02:58.2]} 7... c6 {[%clk 0:03:01]} 8. Bb2 {[%clk
0:02:58.5]} 8... Qc7 {[%clk 0:03:01.4]} 9. d4 {[%clk 0:02:57.4]} 9... e5 {[%clk
0:03:01.8]} 10. e4 {[%clk 0:02:57.1]} 10... Re8 {[%clk 0:03:01.9]} 11. Re1
{[%clk 0:02:56.6]} 11... Nf8 {[%clk 0:03:02.1]} 12. Qd2 {[%clk 0:02:50.9]} 12...
Bg4 {[%clk 0:02:58.5]} 13. h3 {[%clk 0:02:48.6]} 13... Bxf3 {[%clk 0:02:58.4]}
14. Bxf3 {[%clk 0:02:49.5]} 14... Ne6 {[%clk 0:02:57.2]} 15. Ne2 {[%clk
0:02:44.9]} 15... c5 {[%clk 0:02:53.6]} 16. dxe5 {[%clk 0:02:30.1]} 16... dxe5
{[%clk 0:02:52.8]} 17. Nc3 {[%clk 0:02:30.4]} 17... Nd4 {[%clk 0:02:50.1]} 18.
Bg2 {[%clk 0:02:29.4]} 18... Rad8 {[%clk 0:02:48.9]} 19. Nd5 {[%clk 0:02:29.1]}
19... Nxd5 {[%clk 0:02:48.6]} 20. exd5 {[%clk 0:02:27.3]} 20... Bd6 {[%clk
0:02:46.5]} 21. Re3 {[%clk 0:02:21.2]} 21... f5 {[%clk 0:02:44.9]} 22. Rae1
{[%clk 0:02:19]} 22... Qf7 {[%clk 0:02:44.3]} 23. b4 {[%clk 0:01:54.4]} 23... b6
{[%clk 0:02:43.7]} 24. bxc5 {[%clk 0:01:54.2]} 24... bxc5 {[%clk 0:02:42.9]} 25.
Bc3 {[%clk 0:01:52.8]} 25... h6 {[%clk 0:02:37.8]} 26. Rb1 {[%clk 0:01:51.3]}
26... Rb8 {[%clk 0:02:33.5]} 27. Ree1 {[%clk 0:01:51]} 27... Qf6 {[%clk
0:02:30.6]} 28. a4 {[%clk 0:01:34.4]} 28... e4 {[%clk 0:02:29.8]} 29. a5 {[%clk
0:01:32.5]} 29... Be5 {[%clk 0:02:27.3]} 30. Kh1 {[%clk 0:01:16.4]} 30... Rb3
{[%clk 0:02:15.2]} 31. Rxb3 {[%clk 0:01:14.5]} 31... Nxb3 {[%clk 0:02:14.8]} 32.
Bxe5 {[%clk 0:01:13.3]} 32... Qxe5 {[%clk 0:02:15.1]} 33. Qc2 {[%clk 0:01:08]}
33... Nd4 {[%clk 0:02:07.9]} 34. Qc3 {[%clk 0:01:08.3]} 34... Rb8 {[%clk
0:02:05.3]} 35. g4 {[%clk 0:01:08.5]} 35... g6 {[%clk 0:02:04.5]} 36. gxf5
{[%clk 0:01:08.7]} 36... gxf5 {[%clk 0:02:05.4]} 37. a6 {[%clk 0:01:06.5]} 37...
Rb3 {[%clk 0:02:04.4]} 38. Qa5 {[%clk 0:01:05.9]} 38... Qe7 {[%clk 0:01:42.6]}
39. Rg1 {[%clk 0:01:04.6]} 39... Kf7 {[%clk 0:01:40]} 40. Qd2 {[%clk 0:01:02.2]}
40... Qg5 {[%clk 0:01:37.5]} 41. Qa5 {[%clk 0:00:54.2]} 41... Qe7 {[%clk
0:01:37]} 42. Qd2 {[%clk 0:00:43]} 42... Qd6 {[%clk 0:01:33.3]} 43. Qd1 {[%clk
0:00:36.1]} 43... Rf3 {[%clk 0:01:22.8]} 44. Bxf3 {[%clk 0:00:32.1]} 44... Nxf3
{[%clk 0:01:23.7]} 45. Rg2 {[%clk 0:00:31.4]} 45... Qxa6 {[%clk 0:01:17.4]} 46.
Qc1 {[%clk 0:00:25.5]} 46... Qd6 {[%clk 0:01:04.6]} 47. Qa3 {[%clk 0:00:22.1]}
47... Qb6 {[%clk 0:00:55.8]} 48. Qc1 {[%clk 0:00:22.3]} 48... Qb3 {[%clk
0:00:51.5]} 49. Rg3 {[%clk 0:00:20.6]} 49... Qd3 {[%clk 0:00:46]} 50. h4 {[%clk
0:00:20.6]} 50... Qe2 {[%clk 0:00:43]} 51. Qe3 {[%clk 0:00:14]} 51... Qf1+
{[%clk 0:00:37.7]} 52. Rg1 {[%clk 0:00:13.6]} 52... Qxg1# {[%clk 0:00:37.5]} 0-1

[Event "Late-Titled-Tuesday-Blitz-June-04-2024"]
[Site "Chess.com"]
[Date "2024.06.04"]
[Round "1"]
[White "CruzWilliam"]
[Black "NMJeevanK"]
[Result "0-1"]
[WhiteElo "2409"]
[BlackElo "2730"]
[TimeControl "180+1"]
[EndTime "14:07:29 PDT"]
[Termination "NMJeevanK won by resignation"]

1. d4 {[%clk 0:03:00.9]} 1... d6 {[%clk 0:03:00]} 2. c4 {[%clk 0:02:59.3]} 2...
g6 {[%clk 0:02:59.9]} 3. Nc3 {[%clk 0:02:56.7]} 3... Bg7 {[%clk 0:03:00.4]} 4.
e4 {[%clk 0:02:56.1]} 4... e5 {[%clk 0:03:00.7]} 5. Be3 {[%clk 0:02:53]} 5...
Nc6 {[%clk 0:02:53.3]} 6. Nge2 {[%clk 0:02:50.6]} 6... exd4 {[%clk 0:02:50.3]}
7. Nxd4 {[%clk 0:02:49.9]} 7... Nf6 {[%clk 0:02:50.5]} 8. Be2 {[%clk 0:02:43.5]}
8... O-O {[%clk 0:02:50.5]} 9. O-O {[%clk 0:02:27.9]} 9... Re8 {[%clk
0:02:50.5]} 10. Nxc6 {[%clk 0:02:17.8]} 10... bxc6 {[%clk 0:02:50.6]} 11. Qc2
{[%clk 0:02:09.1]} 11... Qe7 {[%clk 0:02:49.7]} 12. b3 {[%clk 0:01:40.6]} 12...
Nxe4 {[%clk 0:02:45.6]} 13. Nxe4 {[%clk 0:01:36.9]} 13... Bxa1 {[%clk
0:02:37.5]} 14. Rxa1 {[%clk 0:01:35.9]} 14... Qxe4 {[%clk 0:02:38]} 15. Qxe4
{[%clk 0:01:27.8]} 15... Rxe4 {[%clk 0:02:37.5]} 16. Bf3 {[%clk 0:01:28.4]}
16... Re7 {[%clk 0:01:58]} 17. Bxc6 {[%clk 0:01:27.3]} 17... Rb8 {[%clk
0:01:58.7]} 18. Bxa7 {[%clk 0:01:26.9]} 18... Rb4 {[%clk 0:01:59.4]} 19. Bd4
{[%clk 0:01:18.3]} 19... Bd7 {[%clk 0:01:52.7]} 20. Bf6 {[%clk 0:01:00.5]} 20...
Re6 {[%clk 0:01:24.1]} 21. Bc3 {[%clk 0:00:42.8]} 21... Rxc4 {[%clk 0:01:19.1]}
22. Bxd7 {[%clk 0:00:23.9]} 22... Rxc3 {[%clk 0:01:18.8]} 23. Bxe6 {[%clk
0:00:23.1]} 23... fxe6 {[%clk 0:01:19.7]} 24. g3 {[%clk 0:00:19.3]} 24... Kf7
{[%clk 0:01:19.8]} 25. Kg2 {[%clk 0:00:18.9]} 25... Ke7 {[%clk 0:01:20.3]} 26.
h4 {[%clk 0:00:19.1]} 26... Kd7 {[%clk 0:01:19.2]} 27. b4 {[%clk 0:00:19.3]}
27... Kc6 {[%clk 0:01:18.5]} 28. a4 {[%clk 0:00:18.8]} 28... Rb3 {[%clk
0:01:10.9]} 29. b5+ {[%clk 0:00:18.3]} 29... Kb6 {[%clk 0:01:10.2]} 30. a5+
{[%clk 0:00:15.1]} 30... Ka7 {[%clk 0:01:05]} 31. Rc1 {[%clk 0:00:13.1]} 31...
Rxb5 {[%clk 0:00:59.9]} 32. Rxc7+ {[%clk 0:00:12.7]} 32... Rb7 {[%clk
0:00:51.3]} 33. Rc6 {[%clk 0:00:12.7]} 33... Rd7 {[%clk 0:00:51.6]} 34. a6
{[%clk 0:00:11.2]} 34... e5 {[%clk 0:00:49.8]} 35. Kf3 {[%clk 0:00:11]} 35... d5
{[%clk 0:00:50]} 36. Ke3 {[%clk 0:00:10.7]} 36... d4+ {[%clk 0:00:48.6]} 37. Kd3
{[%clk 0:00:10.5]} 37... Rf7 {[%clk 0:00:43.4]} 38. Ke2 {[%clk 0:00:09.4]} 38...
Rd7 {[%clk 0:00:39.1]} 39. h5 {[%clk 0:00:08.9]} 39... gxh5 {[%clk 0:00:38.4]}
40. Re6 {[%clk 0:00:08.2]} 40... Rd5 {[%clk 0:00:36.6]} 41. Rh6 {[%clk
0:00:07.1]} 41... d3+ {[%clk 0:00:30.2]} 42. Kd2 {[%clk 0:00:06.7]} 42... e4
{[%clk 0:00:30.7]} 43. Rxh7+ {[%clk 0:00:05.4]} 43... Kxa6 {[%clk 0:00:30.6]}
44. Re7 {[%clk 0:00:06.3]} 44... Rd4 {[%clk 0:00:30.5]} 45. Re5 {[%clk
0:00:06.6]} 45... Ra4 {[%clk 0:00:27.5]} 46. f3 {[%clk 0:00:05.2]} 46... Ra2+
{[%clk 0:00:26.8]} 47. Kd1 {[%clk 0:00:04.9]} 47... exf3 {[%clk 0:00:25.4]} 48.
Rf5 {[%clk 0:00:04.8]} 48... f2 {[%clk 0:00:23.4]} 0-1

[Event "Late-Titled-Tuesday-Blitz-June-04-2024"]
[Site "Chess.com"]
[Date "2024.06.04"]
[Round "1"]
[White "BerlinDrawer"]
[Black "osielchesslover2011"]
[Result "1-0"]
[WhiteElo "2573"]
[BlackElo "2234"]
[TimeControl "180+1"]
[EndTime "14:07:30 PDT"]
[Termination "BerlinDrawer won on time"]

1. e4 {[%clk 0:03:00.9]} 1... c5 {[%clk 0:02:58.8]} 2. Nf3 {[%clk 0:02:59.8]}
2... d6 {[%clk 0:02:59.3]} 3. Bb5+ {[%clk 0:02:58.8]} 3... Nd7 {[%clk
0:02:58.8]} 4. O-O {[%clk 0:02:57.6]} 4... Nf6 {[%clk 0:02:58.1]} 5. Re1 {[%clk
0:02:57.3]} 5... a6 {[%clk 0:02:57.3]} 6. Bf1 {[%clk 0:02:56.4]} 6... e6 {[%clk
0:02:55.7]} 7. c3 {[%clk 0:02:56.7]} 7... Be7 {[%clk 0:02:54.7]} 8. d4 {[%clk
0:02:56.6]} 8... O-O {[%clk 0:02:55.3]} 9. a4 {[%clk 0:02:53.8]} 9... Qc7 {[%clk
0:02:43.8]} 10. h3 {[%clk 0:02:49.1]} 10... b6 {[%clk 0:02:43.2]} 11. d5 {[%clk
0:02:47.1]} 11... exd5 {[%clk 0:02:27.1]} 12. exd5 {[%clk 0:02:48]} 12... Ne5
{[%clk 0:02:27.1]} 13. c4 {[%clk 0:02:36.1]} 13... Ng6 {[%clk 0:02:18.8]} 14.
Nc3 {[%clk 0:02:32.6]} 14... Bd7 {[%clk 0:02:11.8]} 15. Qc2 {[%clk 0:02:27.4]}
15... Rfe8 {[%clk 0:02:08.6]} 16. Bd3 {[%clk 0:02:23.8]} 16... Bf8 {[%clk
0:02:04.2]} 17. Bg5 {[%clk 0:02:20.4]} 17... Nh5 {[%clk 0:01:36.9]} 18. Qd2
{[%clk 0:02:10.2]} 18... h6 {[%clk 0:01:27.1]} 19. Be3 {[%clk 0:02:09.3]} 19...
Ne5 {[%clk 0:01:17.6]} 20. Nxe5 {[%clk 0:02:06]} 20... dxe5 {[%clk 0:01:14.3]}
21. Qc2 {[%clk 0:02:01.9]} 21... Nf4 {[%clk 0:01:04.5]} 22. Bh7+ {[%clk
0:01:56.2]} 22... Kh8 {[%clk 0:01:02.4]} 23. Bxf4 {[%clk 0:01:54.8]} 23... exf4
{[%clk 0:01:01.8]} 24. Bf5 {[%clk 0:01:55.4]} 24... f3 {[%clk 0:00:48.2]} 25.
Bxd7 {[%clk 0:01:49.1]} 25... Qxd7 {[%clk 0:00:47.3]} 26. g4 {[%clk 0:01:45.7]}
26... h5 {[%clk 0:00:33.6]} 27. Qf5 {[%clk 0:01:44.3]} 27... Qxf5 {[%clk
0:00:29.8]} 28. gxf5 {[%clk 0:01:45.2]} 28... Bd6 {[%clk 0:00:28.8]} 29. Ne4
{[%clk 0:01:35.9]} 29... Bf4 {[%clk 0:00:28.1]} 30. a5 {[%clk 0:01:27.7]} 30...
bxa5 {[%clk 0:00:19.7]} 31. Nxc5 {[%clk 0:01:17.6]} 31... Rxe1+ {[%clk 0:00:19]}
32. Rxe1 {[%clk 0:01:16.4]} 32... Rc8 {[%clk 0:00:19.2]} 33. Nd3 {[%clk
0:00:54]} 33... Rxc4 {[%clk 0:00:12.8]} 34. Nxf4 {[%clk 0:00:49]} 34... Rxf4
{[%clk 0:00:12.6]} 35. Rd1 {[%clk 0:00:49.3]} 35... Rb4 {[%clk 0:00:10.6]} 36.
d6 {[%clk 0:00:48.9]} 36... Rb8 {[%clk 0:00:10.7]} 37. h4 {[%clk 0:00:43.6]}
37... Kg8 {[%clk 0:00:08.3]} 38. f6 {[%clk 0:00:40.4]} 38... gxf6 {[%clk
0:00:05.2]} 39. Kh2 {[%clk 0:00:36.5]} 39... Rd8 {[%clk 0:00:02.9]} 40. Kg3
{[%clk 0:00:31.9]} 40... f5 {[%clk 0:00:02.9]} 41. Kxf3 {[%clk 0:00:30.5]} 41...
Kg7 {[%clk 0:00:03.5]} 42. Kf4 {[%clk 0:00:30.5]} 42... Kf6 {[%clk 0:00:03.7]}
43. d7 {[%clk 0:00:23.7]} 1-0

[Event "Late-Titled-Tuesday-Blitz-June-04-2024"]
[Site "Chess.com"]
[Date "2024.06.04"]
[Round "1"]
[White "janhelmer03"]
[Black "Meri-Arabidze"]
[Result "0-1"]
[WhiteElo "2381"]
[BlackElo "2700"]
[TimeControl "180+1"]
[EndTime "14:07:32 PDT"]
[Termination "Meri-Arabidze won by checkmate"]

1. Nf3 {[%clk 0:02:57.7]} 1... d5 {[%clk 0:02:59.6]} 2. e3 {[%clk 0:02:57]} 2...
Nf6 {[%clk 0:02:59.5]} 3. c4 {[%clk 0:02:55.8]} 3... e6 {[%clk 0:03:00]} 4. Nc3
{[%clk 0:02:51.7]} 4... c5 {[%clk 0:03:00]} 5. cxd5 {[%clk 0:02:49.8]} 5... exd5
{[%clk 0:03:00.9]} 6. d4 {[%clk 0:02:49]} 6... Nc6 {[%clk 0:03:01.4]} 7. Be2
{[%clk 0:02:45.2]} 7... Bd6 {[%clk 0:02:57.9]} 8. dxc5 {[%clk 0:02:44.2]} 8...
Bxc5 {[%clk 0:02:58.8]} 9. O-O {[%clk 0:02:44.4]} 9... O-O {[%clk 0:02:59]} 10.
b3 {[%clk 0:02:41.5]} 10... a6 {[%clk 0:02:59.3]} 11. Bb2 {[%clk 0:02:41.6]}
11... Re8 {[%clk 0:02:58.3]} 12. Rc1 {[%clk 0:02:40.3]} 12... Ba7 {[%clk
0:02:55.8]} 13. Na4 {[%clk 0:02:27.3]} 13... Qd6 {[%clk 0:02:55.4]} 14. h3
{[%clk 0:02:22.1]} 14... Bf5 {[%clk 0:02:50.9]} 15. Nd4 {[%clk 0:01:47.4]} 15...
Bb8 {[%clk 0:02:48.1]} 16. f4 {[%clk 0:01:29.2]} 16... Be4 {[%clk 0:02:47.8]}
17. Nxc6 {[%clk 0:01:25.1]} 17... bxc6 {[%clk 0:02:47.6]} 18. Bd4 {[%clk
0:01:22.9]} 18... Nd7 {[%clk 0:02:35.6]} 19. Qe1 {[%clk 0:01:09.5]} 19... Ba7
{[%clk 0:02:31.8]} 20. Bxa7 {[%clk 0:01:05.6]} 20... Rxa7 {[%clk 0:02:32.7]} 21.
Qc3 {[%clk 0:01:02.4]} 21... Qg6 {[%clk 0:02:04.5]} 22. Rf2 {[%clk 0:00:51.5]}
22... Qg3 {[%clk 0:01:58.3]} 23. Nc5 {[%clk 0:00:39.5]} 23... Nxc5 {[%clk
0:01:44.3]} 24. Qxc5 {[%clk 0:00:40.4]} 24... Rae7 {[%clk 0:01:44.6]} 25. Bf3
{[%clk 0:00:35.7]} 25... Bf5 {[%clk 0:01:36.8]} 26. Qxc6 {[%clk 0:00:30.3]}
26... Rxe3 {[%clk 0:01:36.1]} 27. Qxd5 {[%clk 0:00:26.1]} 27... Bxh3 {[%clk
0:01:29.5]} 28. Kf1 {[%clk 0:00:19.5]} 28... Bg4 {[%clk 0:01:10.7]} 29. Qg5
{[%clk 0:00:17]} 29... Qh2 {[%clk 0:00:57.9]} 30. Rfc2 {[%clk 0:00:06.3]} 30...
Rxf3+ {[%clk 0:00:50.2]} 31. gxf3 {[%clk 0:00:02.8]} 31... Qh1+ {[%clk
0:00:37.9]} 32. Kf2 {[%clk 0:00:02.2]} 32... Qxf3+ {[%clk 0:00:38.2]} 33. Kg1
{[%clk 0:00:02.5]} 33... Qg3+ {[%clk 0:00:38]} 34. Rg2 {[%clk 0:00:01.1]} 34...
Qe3+ {[%clk 0:00:38]} 35. Kh2 {[%clk 0:00:01.8]} 35... Qxc1 {[%clk 0:00:36.5]}
36. Qxg4 {[%clk 0:00:02.4]} 36... g6 {[%clk 0:00:35.7]} 37. f5 {[%clk 0:00:03]}
37... Qc7+ {[%clk 0:00:34.6]} 38. Kh3 {[%clk 0:00:02.9]} 38... Qe5 {[%clk
0:00:35.4]} 39. Kh4 {[%clk 0:00:03.2]} 39... Qf6+ {[%clk 0:00:34.6]} 40. Kh3
{[%clk 0:00:03.4]} 40... Re3+ {[%clk 0:00:34.5]} 41. Kh2 {[%clk 0:00:03.8]}
41... Qe5+ {[%clk 0:00:35.1]} 42. Kh1 {[%clk 0:00:03]} 42... Re1+ {[%clk
0:00:34.7]} 43. Rg1 {[%clk 0:00:03.7]} 43... Re2 {[%clk 0:00:24.7]} 44. Rg2
{[%clk 0:00:02]} 44... Re4 {[%clk 0:00:24.7]} 45. Qf3 {[%clk 0:00:01]} 45...
Rh4+ {[%clk 0:00:23.7]} 46. Kg1 {[%clk 0:00:01.5]} 46... Qe1+ {[%clk 0:00:24]}
47. Qf1 {[%clk 0:00:02.1]} 47... Rh1+ {[%clk 0:00:24.3]} 48. Kxh1 {[%clk
0:00:02.6]} 48... Qxf1+ {[%clk 0:00:25]} 49. Rg1 {[%clk 0:00:03.5]} 49... Qh3#
{[%clk 0:00:24.9]} 0-1